fUST/lending_fUST_20251203
["ID","MTS","AMOUNT","RATE_DAILY","PERIOD"]
[395881783,1764735031918,-500.0,0.0001092,2]
[395881784,1764735031927,-500.0,0.0001092,2]
[395881785,1764735031936,-657.7,0.0001092,2]
[395881786,1764735031945,-500.0,0.0001092,2]
[395881787,1764735031955,-500.0,0.0001092,2]
[395881788,1764735031964,-500.0,0.0001092,2]
[395881789,1764735031973,-500.0,0.0001092,2]
[395881790,1764735031983,-500.0,0.0001092,2]
[395881791,1764735031992,-962.41,0.0001092,2]
[395881792,1764735032002,-935.5,0.0001092,2]
[395881793,1764735032011,-500.0,0.0001092,2]
[395881794,1764735032020,-500.0,0.0001092,2]
[395881795,1764735032029,-201.3348851,0.0001092,2]
[395881796,1764735032037,-500.0,0.0001092,2]
[395881797,1764735032047,-472.98658728,0.0001092,2]
[395881798,1764735032057,-500.0,0.0001092,2]
[395881799,1764735032067,-500.0,0.0001092,2]
[395881800,1764735032076,-500.0,0.0001092,2]
[395881802,1764735032085,-500.0,0.0001092,2]
[395881803,1764735032096,-500.0,0.0001092,2]
[395881804,1764735032105,-500.0,0.0001092,2]
[395881805,1764735032115,-500.0,0.0001092,2]
[395881806,1764735032124,-500.0,0.0001092,2]
[395881807,1764735032134,-500.0,0.0001092,2]
[395881808,1764735032144,-565.72338265,0.0001092,2]
[395881809,1764735032153,-500.0,0.0001092,2]
[395881810,1764735032369,-500.0,0.0001092,2]
[395881811,1764735032382,-500.0,0.0001092,2]
[395881812,1764735032395,-481.07104756,0.0001092,2]
[395881813,1764735032404,-756.95,0.00010921,2]
[395881814,1764735032414,-500.0,0.00010921,2]
[395881815,1764735032423,-858.45,0.00010921,2]
[395881816,1764735032433,-1497.89,0.00010921,2]
[395881817,1764735032444,-500.0,0.00010921,2]
[395881818,1764735032462,-500.0,0.00010921,2]
[395881819,1764735032471,-500.0,0.00010921,2]
[395881820,1764735032480,-914.16,0.00010921,2]
[395881821,1764735032489,-500.0,0.00010921,2]
[395881822,1764735032498,-509.35,0.00010921,2]
[395881823,1764735032507,-785.73,0.00010921,2]
[395881824,1764735032516,-2978.84,0.00010921,2]
[395881825,1764735032525,-500.0,0.00010921,2]
[395881826,1764735032534,-1099.35,0.00010921,2]
[395881827,1764735032543,-616.41,0.00010921,2]
[395881828,1764735032553,-726.5,0.00010921,2]
[395881829,1764735032562,-557.77,0.00010921,2]
[395881830,1764735032571,-1240.69,0.00010921,2]
[395881831,1764735032581,-1479.82,0.00010921,2]
[395881832,1764735032590,-1168.67,0.00010921,2]
[395881833,1764735032599,-500.0,0.00010921,2]
[395881834,1764735032608,-500.0,0.00010921,2]
[395881835,1764735032617,-534.30696308,0.00010921,2]
[395881836,1764735032878,-404.99303692,0.00010921,2]
[395881837,1764735032887,-1350.98,0.00010921,2]
[395881838,1764735032897,-1083.04,0.00010921,2]
[395881839,1764735032907,-1173.24,0.00010921,2]
[395881840,1764735032916,-500.0,0.00010922,2]
[395881841,1764735032925,-500.0,0.00010922,2]
[395881842,1764735032934,-553.86710213,0.00010922,2]
[395881843,1764735032943,-281.37909943,0.00010922,2]
[395881866,1764735037715,-202.4845695,0.0001081,2]
[395881868,1764735037725,-202.4845695,0.00010919,2]
[395881870,1764735037733,-500.0,0.0001092,2]
[395881872,1764735037743,-1433.69,0.00010921,2]
[395881874,1764735037752,-218.62090057,0.00010922,2]
[395881876,1764735037761,-500.0,0.00010922,2]
[395881878,1764735037770,-333.63996043,0.00010922,2]
[395881881,1764735037781,-166.36003957,0.00010922,2]
[395881883,1764735037793,-500.0,0.00010922,2]
[395881885,1764735037802,-250.93909457,0.00010922,2]
[395881887,1764735037818,-249.06090543,0.00010922,2]
[395881889,1764735037827,-500.0,0.00010922,2]
[395881891,1764735037836,-500.0,0.00010922,2]
[395881893,1764735037847,-500.0,0.00010922,2]
[395881895,1764735037858,-500.0,0.00010922,2]
[395881897,1764735037867,-500.0,0.00010922,2]
[395881899,1764735037876,-500.0,0.00010922,2]
[395881901,1764735037886,-185.91909457,0.00010922,2]
[395881904,1764735037897,-579.00333235,0.00010922,2]
[395881906,1764735037908,-274.76757308,0.00010922,2]
[395881908,1764735037917,-551.32062063,0.00010922,2]
[395881910,1764735037927,-157.86937937,0.00010922,2]
[395881912,1764735037936,-500.0,0.00010922,2]
[395881914,1764735037945,-527.25627253,0.00010922,2]
[395881916,1764735037955,-500.0,0.00010922,2]
[395881918,1764735037964,-500.0,0.00010922,2]
[395881920,1764735037973,-314.8743481,0.00010922,2]
[395881922,1764735037984,-185.1256519,0.00010922,2]
[395881924,1764735037994,-500.0,0.00010922,2]
[395881926,1764735038003,-500.0,0.00010922,2]
[395881928,1764735038012,-510.35,0.00010922,2]
[395881930,1764735038022,-500.0,0.00010922,2]
[395881932,1764735038032,-591.44,0.00010922,2]
[395881934,1764735038041,-622.96,0.00010922,2]
[395881936,1764735038050,-687.37,0.00010922,2]
[395881938,1764735038060,-581.27,0.00010922,2]
[395881940,1764735038076,-231.19133718,0.00010922,2]
[395881942,1764735038084,-351.74833389,0.00010922,2]
[395881944,1764735038094,-500.0,0.00010922,2]
[395881946,1764735038104,-500.0,0.00010922,2]
[395881948,1764735038113,-500.0,0.00010922,2]
[395881950,1764735038123,-500.0,0.00010922,2]
[395881952,1764735038133,-613.8845969,0.00010922,2]
[395881954,1764735038142,-500.0,0.00010922,2]
[395881956,1764735038153,-500.0,0.00010922,2]
[395881958,1764735038162,-500.0,0.00010922,2]
[395881960,1764735038172,-616.82,0.00010922,2]
[395881962,1764735038181,-500.0,0.00010922,2]
[395881964,1764735038190,-873.03,0.00010922,2]
[395881966,1764735038198,-1050.37,0.00010922,2]
[395881968,1764735038207,-500.0,0.00010922,2]
[395881970,1764735038216,-500.0,0.00010922,2]
[395881972,1764735038225,-500.0,0.00010922,2]
[395881974,1764735038235,-956.31,0.00010922,2]
[395881976,1764735038244,-642.74286099,0.00010922,2]
[395881978,1764735038253,-500.0,0.00010922,2]
[395881980,1764735038263,-500.0,0.00010922,2]
[395881982,1764735038272,-500.0,0.00010922,2]
[395881984,1764735038281,-1228.13,0.00010922,2]
[395881986,1764735038292,-591.91,0.00010922,2]
[395881988,1764735038303,-523.31,0.00010922,2]
[395881990,1764735038313,-721.89,0.00010922,2]
[395881992,1764735038322,-500.0,0.00010922,2]
[395881994,1764735038331,-500.0,0.00010922,2]
[395881996,1764735038341,-500.0,0.00010922,2]
[395881998,1764735038351,-500.0,0.00010922,2]
[395882000,1764735038360,-500.0,0.00010922,2]
[395882002,1764735038370,-500.0,0.00010922,2]
[395882004,1764735038379,-500.0,0.00010922,2]
[395882006,1764735038389,-3773.41,0.00010922,2]
[395882008,1764735038398,-500.0,0.00010922,2]
[395882010,1764735038407,-500.0,0.00010922,2]
[395882012,1764735038417,-1025.54,0.00010922,2]
[395882014,1764735038425,-500.0,0.00010922,2]
[395882016,1764735038435,-559.35,0.00010922,2]
[395882018,1764735038444,-456.61174812,0.00010922,2]
[395882736,1764735045981,-500.0,0.00010898,2]
[395882738,1764735045991,-229.52482029,0.00010898,2]
[395882740,1764735046000,-36.18974268,0.0001092,2]
[395882986,1764735048419,196.48389632,9.481e-05,2]
[395895285,1764735182201,250.0,0.0002,30]
[395896727,1764735658139,232.05954007,0.00011631,7]
[395896870,1764736142425,250.0,0.0002,30]
[395896937,1764736231820,-669.00250047,9.605e-05,2]
[395896938,1764736231830,-230.0,9.702e-05,2]
[395896939,1764736231840,-3725.0,9.702e-05,2]
[395896940,1764736231849,-393.75090471,9.9e-05,2]
[395896942,1764736231860,-300.0,9.998e-05,2]
[395896943,1764736231870,-1200.0,9.998e-05,2]
[395896944,1764736231881,-300.0,9.999e-05,2]
[395896945,1764736231891,-300.0,9.999e-05,2]
[395896946,1764736231900,-300.0,9.999e-05,2]
[395896947,1764736231910,-860.29554594,0.0001,2]
[395896948,1764736231924,-1521.22208357,0.0001,2]
[395896949,1764736231935,-332.58355326,0.0001,2]
[395896998,1764736238210,-2196.29875058,0.0001,2]
[395897001,1764736238222,-355.13763796,0.0001,2]
[395897006,1764736238268,-861.4296,0.0001,2]
[395897008,1764736238279,-359.78448428,0.0001,2]
[395897019,1764736238379,-5653.11623681,0.0001,2]
[395897022,1764736238390,-2910.0862981,0.0001,2]
[395897024,1764736238400,-50000.0,0.00010197,2]
[395897026,1764736238409,-500.0,0.00010197,2]
[395897028,1764736238419,-500.0,0.00010197,2]
[395897029,1764736238428,-412.02983279,0.00010197,2]
[395897031,1764736238438,-290.50937972,0.00010197,2]
[395897034,1764736238447,-185.39878051,0.00010197,2]
[395897036,1764736238456,-1174.1,0.00010197,2]
[395897038,1764736238465,-546.65,0.00010197,2]
[395897040,1764736238475,-500.0,0.00010197,2]
[395897042,1764736238484,-500.0,0.00010197,2]
[395897043,1764736238493,-500.0,0.00010197,2]
[395897046,1764736238503,-2310.47536466,0.00010197,2]
[395897048,1764736238514,-1983.29463534,0.00010197,2]
[395897050,1764736238524,-1828.3732849,0.00010197,2]
[395897052,1764736238535,-1430.3267151,0.00010197,2]
[395897054,1764736238544,-2678.69,0.00010197,2]
[395897056,1764736238553,-232.92146116,0.00010197,2]
[395897058,1764736238561,-500.0,0.00010197,2]
[395897060,1764736238571,-630.29,0.00010197,2]
[395897062,1764736238580,-500.0,0.00010197,2]
[395897064,1764736238590,-500.0,0.00010197,2]
[395897066,1764736238599,-500.0,0.00010197,2]
[395897068,1764736238608,-500.0,0.00010197,2]
[395897070,1764736238618,-500.0,0.00010197,2]
[395897072,1764736238628,-500.0,0.00010197,2]
[395897074,1764736238637,-922.31,0.00010197,2]
[395897076,1764736238647,-500.0,0.00010197,2]
[395897078,1764736238656,-500.0,0.00010197,2]
[395897080,1764736238665,-822.68,0.00010198,2]
[395897082,1764736238675,-500.0,0.00010198,2]
[395897084,1764736238684,-664.95,0.00010198,2]
[395897086,1764736238694,-500.0,0.00010198,2]
[395897088,1764736238703,-500.0,0.00010198,2]
[395897090,1764736238712,-876.07,0.00010198,2]
[395897092,1764736238722,-1435.48,0.00010198,2]
[395897094,1764736238732,-500.0,0.00010198,2]
[395897096,1764736238742,-2854.72,0.00010198,2]
[395897098,1764736238752,-500.0,0.00010198,2]
[395897100,1764736238762,-500.0,0.00010198,2]
[395897102,1764736238772,-590.72,0.00010198,2]
[395897104,1764736238781,-752.99,0.00010198,2]
[395897106,1764736238791,-696.22,0.00010198,2]
[395897108,1764736238800,-1053.54,0.00010198,2]
[395897110,1764736238810,-1189.0,0.00010198,2]
[395897112,1764736238820,-534.53,0.00010198,2]
[395897114,1764736238831,-1418.16,0.00010198,2]
[395897116,1764736238841,-1119.98,0.00010198,2]
[395897118,1764736238850,-500.0,0.00010198,2]
[395897120,1764736238860,-900.16,0.00010198,2]
[395897147,1764736239104,-500.0,0.00010198,2]
[395897149,1764736239114,-1294.69,0.00010198,2]
[395897151,1764736239124,-1124.35,0.00010198,2]
[395897153,1764736239133,-1373.95,0.00010198,2]
[395897155,1764736239143,-64.37197842,0.00010198,2]
[395897157,1764736239155,-852.08802158,0.00010198,2]
[395897159,1764736239164,-500.0,0.00010198,2]
[395897161,1764736239174,-500.0,0.00010199,2]
[395897164,1764736239183,-300.0,0.00010199,2]
[395897165,1764736239192,-300.0,0.00010199,2]
[395897167,1764736239202,-300.0,0.00010199,2]
[395897170,1764736239211,-300.0,0.00010199,2]
[395897172,1764736239220,-300.0,0.00010199,2]
[395897174,1764736239230,-300.0,0.00010199,2]
[395897176,1764736239242,-300.0,0.00010199,2]
[395897178,1764736239258,-300.0,0.00010199,2]
[395897180,1764736239267,-300.0,0.00010199,2]
[395897181,1764736239276,-300.0,0.00010199,2]
[395897183,1764736239285,-300.0,0.00010199,2]
[395897186,1764736239295,-300.0,0.00010199,2]
[395897188,1764736239305,-300.0,0.00010199,2]
[395897189,1764736239314,-300.0,0.00010199,2]
[395897191,1764736239324,-300.0,0.00010199,2]
[395897193,1764736239334,-600.0,0.00010402,2]
[395897196,1764736239345,-1174.1,0.00010471,2]
[395897197,1764736239359,-546.65,0.00010471,2]
[395897199,1764736239368,-500.0,0.00010471,2]
[395897202,1764736239378,-500.0,0.00010471,2]
[395897204,1764736239387,-500.0,0.00010471,2]
[395897206,1764736239399,-4293.77,0.00010471,2]
[395897208,1764736239408,-2798.84622515,0.00010471,2]
[395897745,1764736245099,-500.0,0.00010197,2]
[395897747,1764736245108,-1176.96,0.00010198,2]
[395897749,1764736245118,-459.85377485,0.00010471,2]
[395897751,1764736245128,-2678.69,0.00010471,2]
[395897753,1764736245137,-500.0,0.00010471,2]
[395897755,1764736245147,-630.29,0.00010471,2]
[395897757,1764736245157,-500.0,0.00010471,2]
[395897759,1764736245166,-500.0,0.00010471,2]
[395897761,1764736245176,-500.0,0.00010471,2]
[395897763,1764736245185,-500.0,0.00010471,2]
[395897765,1764736245194,-500.0,0.00010471,2]
[395897767,1764736245204,-536.93352004,0.00010471,2]
[395897769,1764736245214,-922.31,0.00010471,2]
[395897771,1764736245223,-500.0,0.00010471,2]
[395897773,1764736245233,-500.0,0.00010471,2]
[395897775,1764736245243,-664.95,0.00010472,2]
[395897777,1764736245252,-500.0,0.00010472,2]
[395897779,1764736245262,-500.0,0.00010472,2]
[395897781,1764736245271,-876.07,0.00010472,2]
[395897783,1764736245281,-1435.48,0.00010472,2]
[395897785,1764736245290,-500.0,0.00010472,2]
[395897787,1764736245300,-2854.72,0.00010472,2]
[395897789,1764736245310,-500.0,0.00010472,2]
[395897791,1764736245319,-500.0,0.00010472,2]
[395897793,1764736245328,-590.72,0.00010472,2]
[395897794,1764736245338,-752.99,0.00010472,2]
[395897796,1764736245347,-696.22,0.00010472,2]
[395897799,1764736245362,-1053.54,0.00010472,2]
[395897800,1764736245372,-1189.0,0.00010472,2]
[395897803,1764736245382,-534.53,0.00010472,2]
[395897805,1764736245392,-1418.16,0.00010472,2]
[395897807,1764736245403,-1119.98,0.00010472,2]
[395897808,1764736245413,-327.91700042,0.00010472,2]
[395897810,1764736245422,-900.16,0.00010472,2]
[395897812,1764736245433,-500.0,0.00010472,2]
[395897814,1764736245443,-1294.69,0.00010472,2]
[395897816,1764736245453,-1124.35,0.00010472,2]
[395897818,1764736245462,-1373.95,0.00010472,2]
[395897820,1764736245471,-916.46,0.00010472,2]
[395897822,1764736245481,-500.0,0.00010472,2]
[395897824,1764736245490,-154.49072783,0.00010472,2]
[395897826,1764736245500,-159.04455864,0.00010472,2]
[395897828,1764736245509,-1176.96,0.00010472,2]
[395897830,1764736245518,-500.0,0.00010473,2]
[395897832,1764736245528,-1174.1,0.00010745,2]
[395897834,1764736245539,-546.65,0.00010745,2]
[395897836,1764736245548,-500.0,0.00010745,2]
[395897838,1764736245558,-500.0,0.00010745,2]
[395897840,1764736245572,-500.0,0.00010745,2]
[395897842,1764736245582,-4293.77,0.00010745,2]
[395897844,1764736245592,-3258.7,0.00010745,2]
[395897846,1764736245601,-2678.69,0.00010745,2]
[395897848,1764736245611,-500.0,0.00010745,2]
[395897850,1764736245620,-630.29,0.00010745,2]
[395897852,1764736245629,-500.0,0.00010745,2]
[395897854,1764736245639,-500.0,0.00010745,2]
[395897856,1764736245648,-500.0,0.00010745,2]
[395897858,1764736245658,-500.0,0.00010745,2]
[395897860,1764736245667,-922.31,0.00010745,2]
[395897862,1764736245676,-500.0,0.00010745,2]
[395897864,1764736245686,-500.0,0.00010745,2]
[395897866,1764736245695,-664.95,0.00010746,2]
[395897868,1764736245704,-311.12041822,0.00010746,2]
[395897913,1764736246142,-500.0,0.00010196,2]
[395897915,1764736246153,-500.0,0.0001047,2]
[395897917,1764736246163,-188.87958178,0.00010746,2]
[395897919,1764736246172,-500.0,0.00010746,2]
[395897921,1764736246181,-876.07,0.00010746,2]
[395897923,1764736246191,-1435.48,0.00010746,2]
[395897925,1764736246201,-500.0,0.00010746,2]
[395897927,1764736246211,-2854.72,0.00010746,2]
[395897929,1764736246220,-500.0,0.00010746,2]
[395897931,1764736246231,-500.0,0.00010746,2]
[395897933,1764736246243,-590.72,0.00010746,2]
[395897935,1764736246253,-752.99,0.00010746,2]
[395897936,1764736246262,-696.22,0.00010746,2]
[395897938,1764736246272,-1053.54,0.00010746,2]
[395897940,1764736246282,-1189.0,0.00010746,2]
[395897942,1764736246292,-534.53,0.00010746,2]
[395897944,1764736246302,-1418.16,0.00010746,2]
[395897946,1764736246312,-1119.98,0.00010746,2]
[395897948,1764736246322,-900.16,0.00010746,2]
[395897950,1764736246333,-500.0,0.00010746,2]
[395897952,1764736246343,-1294.69,0.00010746,2]
[395897955,1764736246354,-1124.35,0.00010746,2]
[395897957,1764736246368,-1373.95,0.00010746,2]
[395897958,1764736246378,-916.46,0.00010746,2]
[395897960,1764736246387,-500.0,0.00010746,2]
[395897963,1764736246398,-1176.96,0.00010746,2]
[395897965,1764736246407,-500.0,0.00010747,2]
[395897966,1764736246417,-500.0,0.00010819,2]
[395897968,1764736246426,-966.2,0.00010819,2]
[395897970,1764736246436,-500.0,0.00010819,2]
[395897973,1764736246446,-500.0,0.00010819,2]
[395897975,1764736246456,-500.0,0.00010819,2]
[395897976,1764736246465,-500.0,0.00010819,2]
[395897979,1764736246475,-500.0,0.00010819,2]
[395897980,1764736246484,-500.0,0.00010819,2]
[395897982,1764736246497,-1072.27,0.00010819,2]
[395897984,1764736246506,-500.0,0.00010819,2]
[395897986,1764736246515,-500.0,0.00010819,2]
[395897988,1764736246525,-500.0,0.00010819,2]
[395897990,1764736246534,-500.0,0.00010819,2]
[395897992,1764736246544,-500.0,0.00010819,2]
[395897994,1764736246553,-500.0,0.00010819,2]
[395897996,1764736246563,-504.01,0.00010819,2]
[395897998,1764736246573,-500.0,0.00010819,2]
[395898000,1764736246583,-500.0,0.00010819,2]
[395898002,1764736246592,-500.0,0.00010819,2]
[395898004,1764736246602,-500.0,0.00010819,2]
[395898006,1764736246611,-620.03,0.00010819,2]
[395898008,1764736246620,-649.86,0.00010819,2]
[395898010,1764736246630,-711.48,0.00010819,2]
[395898012,1764736246639,-594.74,0.00010819,2]
[395898014,1764736246649,-500.0,0.00010819,2]
[395898016,1764736246658,-500.0,0.00010819,2]
[395898018,1764736246667,-500.0,0.00010819,2]
[395898020,1764736246677,-500.0,0.00010819,2]
[395898022,1764736246686,-500.0,0.00010819,2]
[395898024,1764736246695,-619.12,0.00010819,2]
[395898026,1764736246705,-882.98,0.00010819,2]
[395898028,1764736246715,-500.0,0.00010819,2]
[395898030,1764736246724,-1076.92,0.00010819,2]
[395898032,1764736246733,-691.81,0.00010819,2]
[395898035,1764736246754,-500.0,0.00010819,2]
[395898037,1764736246766,-3616.19,0.00010819,2]
[395898039,1764736246776,-501.51,0.00010819,2]
[395898042,1764736246786,-500.0,0.00010819,2]
[395898044,1764736246797,-729.41,0.00010819,2]
[395898046,1764736246806,-500.0,0.00010819,2]
[395898048,1764736246815,-500.0,0.00010819,2]
[395898050,1764736246824,-500.0,0.00010819,2]
[395898052,1764736246833,-500.0,0.00010819,2]
[395898054,1764736246844,-500.0,0.00010819,2]
[395898056,1764736246853,-500.0,0.00010819,2]
[395898058,1764736246862,-500.0,0.00010819,2]
[395898059,1764736246871,-4266.57,0.00010819,2]
[395898060,1764736246881,-500.0,0.00010819,2]
[395898061,1764736246891,-982.81,0.00010819,2]
[395898062,1764736246900,-500.0,0.00010819,2]
[395898063,1764736246909,-565.95,0.00010819,2]
[395898064,1764736246919,-2810.1,0.00010819,2]
[395898065,1764736246928,-500.0,0.00010819,2]
[395898066,1764736246937,-883.37,0.00010819,2]
[395898067,1764736246947,-500.0,0.00010819,2]
[395898068,1764736246956,-760.62,0.00010819,2]
[395898069,1764736246965,-466.76995953,0.00010819,2]
[395898070,1764736246974,-500.0,0.00010819,2]
[395898071,1764736246984,-500.0,0.00010819,2]
[395898073,1764736246995,-500.0,0.00010819,2]
[395898075,1764736247005,-3140.02,0.00010819,2]
[395898077,1764736247014,-585.0,0.00010819,2]
[395898079,1764736247024,-539.51,0.00010819,2]
[395898081,1764736247033,-933.8,0.00010819,2]
[395898084,1764736247043,-500.0,0.00010819,2]
[395898086,1764736247055,-1240.48,0.00010819,2]
[395898088,1764736247064,-500.0,0.00010819,2]
[395898090,1764736247074,-955.35,0.00010819,2]
[395898092,1764736247084,-500.0,0.00010819,2]
[395898094,1764736247093,-500.0,0.00010819,2]
[395898096,1764736247103,-568.32,0.00010819,2]
[395898098,1764736247113,-789.89,0.00010819,2]
[395898100,1764736247123,-632.7,0.00010819,2]
[395898102,1764736247132,-500.0,0.00010819,2]
[395898104,1764736247143,-500.0,0.00010819,2]
[395898106,1764736247152,-686.37,0.00010819,2]
[395898108,1764736247162,-2899.31,0.00010819,2]
[395898110,1764736247173,-500.0,0.00010819,2]
[395898113,1764736247183,-500.0,0.00010819,2]
[395898114,1764736247193,-500.0,0.00010819,2]
[395898117,1764736247202,-500.0,0.00010819,2]
[395898118,1764736247212,-500.0,0.00010819,2]
[395898120,1764736247221,-661.97,0.00010819,2]
[395898122,1764736247231,-500.0,0.00010819,2]
[395898125,1764736247242,-500.0,0.0001082,2]
[395898126,1764736247251,-500.0,0.0001082,2]
[395898129,1764736247261,-500.0,0.0001082,2]
[395898131,1764736247271,-500.0,0.0001082,2]
[395898133,1764736247281,-500.0,0.0001082,2]
[395898135,1764736247291,-500.0,0.0001082,2]
[395898137,1764736247301,-500.0,0.0001082,2]
[395898139,1764736247310,-500.0,0.0001082,2]
[395898141,1764736247321,-500.0,0.0001082,2]
[395898143,1764736247330,-500.0,0.0001082,2]
[395898145,1764736247340,-500.0,0.0001082,2]
[395898147,1764736247350,-500.0,0.0001082,2]
[395898149,1764736247362,-500.0,0.0001082,2]
[395898151,1764736247373,-500.0,0.0001082,2]
[395898153,1764736247383,-500.0,0.0001082,2]
[395898155,1764736247392,-500.0,0.0001082,2]
[395898157,1764736247403,-500.0,0.0001082,2]
[395898159,1764736247412,-500.0,0.0001082,2]
[395898161,1764736247422,-500.0,0.0001082,2]
[395898163,1764736247433,-591.91,0.0001082,2]
[395898165,1764736247442,-500.0,0.0001082,2]
[395898167,1764736247452,-500.0,0.0001082,2]
[395898200,1764736247759,-500.0,0.0001082,2]
[395898202,1764736247769,-500.0,0.0001082,2]
[395898204,1764736247779,-500.0,0.0001082,2]
[395898206,1764736247788,-595.52802037,0.0001082,2]
[395898208,1764736247797,-500.0,0.0001082,2]
[395898210,1764736247807,-500.0,0.0001082,2]
[395898212,1764736247816,-500.0,0.0001082,2]
[395898214,1764736247825,-557.2,0.0001082,2]
[395898216,1764736247835,-573.3,0.0001082,2]
[395898218,1764736247844,-500.0,0.0001082,2]
[395898220,1764736247853,-500.0,0.0001082,2]
[395898222,1764736247863,-500.0,0.0001082,2]
[395898224,1764736247872,-500.0,0.0001082,2]
[395898226,1764736247881,-151.0,0.0001082,2]
[395898228,1764736247890,-500.0,0.0001082,2]
[395898230,1764736247899,-500.0,0.0001082,2]
[395898232,1764736247908,-500.0,0.0001082,2]
[395898234,1764736247917,-500.0,0.0001082,2]
[395898236,1764736247926,-500.0,0.0001082,2]
[395898238,1764736247935,-500.0,0.0001082,2]
[395898240,1764736247945,-500.0,0.0001082,2]
[395898242,1764736247955,-510.04,0.0001082,2]
[395898244,1764736247965,-500.0,0.0001082,2]
[395898246,1764736247975,-500.0,0.0001082,2]
[395898248,1764736247984,-500.0,0.0001082,2]
[395898250,1764736247995,-500.0,0.0001082,2]
[395898252,1764736248004,-151.0,0.0001082,2]
[395898254,1764736248013,-500.0,0.0001082,2]
[395898256,1764736248023,-529.25,0.0001082,2]
[395898258,1764736248032,-500.0,0.0001082,2]
[395898260,1764736248041,-500.0,0.0001082,2]
[395898262,1764736248050,-1705.3,0.0001082,2]
[395898264,1764736248060,-500.0,0.0001082,2]
[395898266,1764736248069,-917.58,0.0001082,2]
[395898268,1764736248078,-500.0,0.0001082,2]
[395898271,1764736248092,-151.49502008,0.0001082,2]
[395898273,1764736248101,-500.0,0.0001082,2]
[395898275,1764736248110,-151.0,0.0001082,2]
[395898277,1764736248119,-500.0,0.0001082,2]
[395898279,1764736248128,-500.0,0.0001082,2]
[395898281,1764736248138,-500.0,0.0001082,2]
[395898283,1764736248147,-500.0,0.0001082,2]
[395898285,1764736248157,-500.0,0.0001082,2]
[395898287,1764736248167,-701.9,0.0001082,2]
[395898289,1764736248176,-1196.5,0.0001082,2]
[395898291,1764736248185,-2968.32,0.0001082,2]
[395898293,1764736248195,-500.0,0.0001082,2]
[395898295,1764736248204,-821.03,0.0001082,2]
[395898297,1764736248214,-1775.18,0.0001082,2]
[395898299,1764736248223,-505.59615815,0.0001082,2]
[395898301,1764736248233,-500.0,0.0001082,2]
[395898303,1764736248243,-783.97,0.0001082,2]
[395898305,1764736248253,-500.0,0.0001082,2]
[395898307,1764736248263,-500.0,0.0001082,2]
[395898309,1764736248272,-1119.29,0.0001082,2]
[395898311,1764736248282,-500.0,0.0001082,2]
[395898313,1764736248291,-500.0,0.0001082,2]
[395898315,1764736248301,-500.0,0.0001082,2]
[395898317,1764736248310,-508.47,0.0001082,2]
[395898319,1764736248319,-6084.11,0.0001082,2]
[395898321,1764736248329,-500.0,0.0001082,2]
[395898323,1764736248339,-500.0,0.0001082,2]
[395898325,1764736248348,-500.0,0.0001082,2]